bitfinex-derivatives/quotes_ETHF0:USTF0_20240927
["timestamp","ask_amount","ask_price","bid_price","bid_amount"]
[1727429511899,1.34862,2660.2,2659.8,1.0029]
[1727429512208,0.37583,2660.1,2659.8,1.0029]
[1727429512403,1.34862,2660.2,2659.8,1.0029]
[1727429512909,0.9728,2660.2,2659.8,1.0029]
[1727429513096,0.9728,2660.2,2659.8,1.37877]
[1727429513297,0.37581,2660.3,2659.8,1.37877]
[1727429513497,0.37581,2660.2,2659.8,1.0029]
[1727429514402,0.37583,2660.1,2659.8,1.0029]
[1727429516411,4.82828331,2660.4,2659.8,1.0029]
[1727429516707,0.37583,2660.1,2659.8,1.0029]
[1727429516910,3.88881331,2660.3,2659.8,1.0029]
[1727429517209,0.37583,2660.1,2659.8,1.0029]
[1727429517812,0.37584,2660.0,2659.8,1.0029]
[1727429518310,3.88881331,2660.3,2659.8,1.0029]
[1727429518506,0.37585,2659.9,2659.8,1.0029]
[1727429518709,0.37585,2660.0,2659.8,1.0029]
[1727429519097,0.37585,2659.9,2659.8,1.0029]
[1727429519299,0.37585,2659.9,2659.7,3.2078]
[1727429520213,0.37587,2659.8,2659.7,3.2078]
[1727429520805,0.37587,2659.8,2659.7,6.9678]
[1727429521209,3.2078,2660.3,2659.7,7.34368]
[1727429521514,1.9868,2660.5,2659.9,0.37585]
[1727429521814,0.37581,2660.3,2659.9,0.37585]
[1727429522113,1.9868,2660.5,2660.0,0.37584]
[1727429522114,0.37579,2660.4,2660.0,0.37584]
[1727429522309,0.37579,2660.4,2659.7,3.2078]
[1727429522310,0.37579,2660.4,2659.9,0.37585]
[1727429522505,0.3758,2660.3,2660.0,4.2572]
[1727429522816,1.9868,2660.5,2660.0,4.2572]
[1727429523017,0.37578,2660.4,2660.0,4.2572]
[1727429523218,1.9868,2660.5,2660.0,4.2572]
[1727429523219,0.3758,2660.3,2660.0,4.2572]
[1727429524312,0.37581,2660.2,2660.0,1.0494]
[1727429525011,0.37581,2660.2,2659.7,3.58368]
[1727429525218,1.9868,2660.5,2659.4,0.0278]
[1727429525219,3.2078,2660.4,2659.4,0.0278]
[1727429525417,2.92623,2660.5,2659.4,0.0278]
[1727429525418,0.3759,2659.6,2659.4,0.0278]
[1727429525613,2.1242,2659.5,2659.4,0.0278]
[1727429525814,2.50011,2659.5,2659.4,0.0278]
[1727429526418,2.1242,2659.5,2659.4,0.0278]
[1727429526717,2.50011,2659.5,2659.4,0.0278]
[1727429530633,0.37603,2658.7,2658.1,3.2078]
[1727429530819,0.37603,2658.7,2658.2,0.37609]
[1727429531115,0.37603,2658.7,2658.1,3.2078]
[1727429531116,1.0427,2658.6,2658.1,3.2078]
[1727429531419,1.0427,2658.6,2658.5,3.2078]
[1727429532007,0.37599,2659.0,2658.5,3.2078]
[1727429532207,0.37599,2659.0,2658.5,3.58385]
[1727429532208,1.0427,2659.0,2658.5,3.58385]
[1727429532425,1.339,2659.3,2658.8,3.2078]
[1727429532615,0.37596,2659.2,2658.8,3.2078]
[1727429533017,0.37596,2659.2,2658.7,0.37602]
[1727429533215,1.339,2659.3,2658.8,3.2078]
[1727429533622,1.339,2659.3,2658.7,1.0429]
[1727429533623,2.3461,2659.3,2658.7,1.0429]
[1727429533816,2.72204,2659.3,2658.7,1.41892]
[1727429534124,2.72204,2659.3,2658.7,2.39172]
[1727429534420,0.37597,2659.1,2658.7,2.0157]
[1727429534621,0.37597,2659.1,2658.6,3.58383]
[1727429534622,2.3461,2659.3,2658.6,3.2078]
[1727429535019,0.37598,2659.1,2658.6,3.2078]
[1727429535213,0.37596,2659.2,2658.6,3.2078]
[1727429535419,2.3461,2659.3,2658.7,1.0151]
[1727429535420,0.37597,2659.1,2658.7,1.0151]
[1727429535819,0.37598,2659.0,2658.7,1.0151]
[1727429536117,0.37598,2659.0,2658.6,3.2078]
[1727429536518,3.88881331,2659.2,2658.6,3.2078]
[1727429536724,0.37601,2658.9,2658.6,3.2078]
[1727429536920,0.988,2658.8,2658.6,3.2078]
[1727429537122,1.36401,2658.8,2658.6,3.2078]
[1727429537323,0.988,2658.8,2658.6,3.2078]
[1727429537526,1.9919,2658.7,2658.6,3.2078]
[1727429538024,1.9919,2658.7,2658.0,3.58392]
[1727429538025,0.37606,2658.5,2658.0,3.58392]
[1727429538322,0.988,2658.8,2658.6,0.37603]
[1727429538521,0.988,2658.8,2658.6,3.2078]
[1727429538827,1.36402,2658.8,2658.3,3.58387]
[1727429539020,9.3136055,2659.2,2658.7,3.58382]
[1727429539217,2.3772,2659.3,2658.8,1.4007]
[1727429539420,2.3772,2659.3,2658.8,2.0108]
[1727429539618,2.3772,2659.3,2659.0,3.2078]
[1727429539818,2.3772,2659.3,2659.0,3.58378]
[1727429540024,2.3772,2659.3,2658.9,0.37599]
[1727429540320,2.3772,2659.3,2658.8,2.0108]
[1727429540321,2.3772,2659.3,2659.0,3.58378]
[1727429540521,4.89591331,2659.5,2659.0,3.58378]
[1727429540522,1.0071,2659.5,2659.0,3.58378]
[1727429540827,1.0071,2659.5,2659.3,3.2078]
[1727429541423,1.0071,2659.5,2659.1,3.58377]
[1727429541628,1.0071,2659.5,2659.1,3.2078]
[1727429542221,1.0382,2659.6,2659.1,3.58377]
[1727429542627,1.0382,2659.6,2659.4,3.2078]
[1727429543025,1.0077,2659.9,2659.4,3.2078]
[1727429543422,1.0077,2659.9,2659.4,3.58372]
[1727429544131,1.0077,2659.9,2659.5,1.0537]
[1727429545329,1.0077,2659.9,2659.1,3.2078]
[1727429545741,0.37591,2659.6,2659.4,3.2078]
[1727429546045,0.37596,2659.2,2658.8,0.9861]
[1727429546438,2.92851,2659.5,2658.9,3.2078]
[1727429546637,0.37598,2659.1,2658.9,3.2078]
[1727429546842,0.37598,2659.0,2658.9,3.2078]
[1727429547547,0.37598,2659.0,2658.6,1.024]
[1727429547746,2.92851,2659.5,2658.6,4.2318]
[1727429547747,0.376,2658.9,2658.6,4.2318]
[1727429547943,1.0159,2658.9,2658.6,1.024]
[1727429548448,1.0159,2658.9,2658.6,4.2318]
[1727429548637,1.3919,2658.9,2658.6,4.2318]
[1727429549435,1.0159,2658.9,2658.6,4.2318]
[1727429550149,1.3919,2658.9,2658.6,4.2318]
[1727429550741,0.37601,2658.8,2658.6,3.2078]
[1727429550940,4.90471331,2658.9,2658.6,3.2078]
[1727429551144,4.82741331,2658.8,2658.6,3.2078]
[1727429552043,5.20342331,2658.8,2658.6,3.2078]
[1727429552246,0.9386,2658.8,2658.6,3.2078]
[1727429552447,0.37602,2658.7,2658.6,3.2078]
[1727429552648,0.37602,2658.7,2658.5,3.2078]
[1727429553653,0.37604,2658.6,2658.5,3.2078]
[1727429553939,0.37603,2658.7,2658.5,3.2078]
[1727429554142,4.82741331,2658.8,2658.5,3.2078]
[1727429554344,5.20343331,2658.8,2658.5,3.2078]
[1727429554739,0.9386,2658.8,2658.5,3.2078]
[1727429555154,1.31461,2658.8,2658.5,3.2078]
[1727429555453,0.9386,2658.8,2658.5,3.2078]
[1727429555753,4.90471331,2658.9,2658.5,3.58385]
[1727429556253,4.90471331,2658.9,2658.5,3.2078]
[1727429556650,3.88881331,2659.0,2658.6,0.37603]
[1727429556842,3.88881331,2659.0,2658.8,3.58381]
[1727429557046,3.88881331,2659.2,2658.9,0.9677]
[1727429557247,4.26476331,2659.3,2658.9,0.9677]
[1727429557649,0.37595,2659.3,2658.9,0.9677]
[1727429558455,0.37596,2659.2,2658.9,0.9677]
[1727429558750,0.37595,2659.3,2658.9,0.9677]
[1727429559947,0.37596,2659.2,2658.9,0.9677]
[1727429561154,2.7785,2659.4,2658.9,0.9677]
[1727429561347,0.37595,2659.2,2658.9,0.9677]
[1727429563266,0.37596,2659.2,2658.9,0.9677]
[1727429563449,0.37595,2659.3,2658.9,0.9677]
[1727429563758,0.37594,2659.3,2658.9,0.9677]
[1727429563960,0.37596,2659.2,2658.9,0.9677]
[1727429564448,2.7785,2659.4,2658.9,0.9677]
[1727429564649,0.37597,2659.2,2658.9,0.9677]
[1727429565253,0.37596,2659.2,2658.9,0.9677]
[1727429565453,0.37594,2659.3,2658.9,0.9677]
[1727429565756,3.88881331,2659.2,2658.9,0.9677]
[1727429566056,4.26475331,2659.3,2658.9,0.9677]
[1727429566459,3.88881331,2659.3,2659.0,0.37598]
[1727429566653,7.04324331,2659.4,2659.1,3.2078]
[1727429566965,0.37594,2659.3,2659.1,3.2078]
[1727429567962,7.04324331,2659.4,2659.1,3.2078]
[1727429568364,0.37594,2659.3,2659.1,3.2078]
[1727429569064,7.04324331,2659.4,2659.1,3.2078]
[1727429569262,3.88881331,2659.3,2659.1,3.2078]
[1727429570269,4.26475331,2659.3,2659.1,3.2078]
[1727429570864,3.88881331,2659.3,2659.1,3.2078]
[1727429571054,4.26475331,2659.3,2659.1,3.2078]
[1727429571363,3.88881331,2659.2,2659.1,3.2078]
[1727429571855,3.88881331,2659.2,2659.1,6.9686]
[1727429572855,0.37594,2659.3,2659.1,6.9686]
[1727429573058,0.37594,2659.3,2659.1,3.2078]
[1727429573662,0.37595,2659.2,2659.1,3.2078]
[1727429574160,0.37594,2659.3,2659.1,6.9686]
[1727429574370,0.37594,2659.3,2659.1,3.2078]
[1727429575064,2.7785,2659.4,2659.1,3.2078]
[1727429575262,0.37594,2659.3,2659.1,3.2078]
[1727429577456,2.7785,2659.4,2659.1,3.2078]
[1727429577457,0.37595,2659.2,2659.1,3.2078]
[1727429577857,0.37595,2659.3,2659.1,6.9686]
[1727429578058,0.37595,2659.3,2659.1,3.2078]
[1727429578464,2.7785,2659.4,2659.1,3.2078]
[1727429578465,0.37595,2659.2,2659.1,3.2078]
[1727429578658,0.37595,2659.3,2659.1,3.2078]
[1727429578855,2.7785,2659.4,2659.1,3.2078]
[1727429579068,0.37595,2659.2,2659.1,3.2078]
[1727429579460,0.37594,2659.3,2659.1,3.2078]
[1727429579662,0.37595,2659.2,2659.1,3.2078]
[1727429579872,2.7785,2659.4,2659.1,3.2078]
[1727429580061,0.37595,2659.3,2659.1,3.2078]
[1727429581069,2.7785,2659.4,2659.1,3.2078]
[1727429581769,0.37594,2659.3,2659.1,3.2078]
[1727429582773,0.37595,2659.2,2659.1,3.2078]
[1727429583467,2.7785,2659.4,2659.1,3.2078]
[1727429584476,0.37595,2659.2,2659.1,3.2078]
[1727429585269,0.37595,2659.2,2659.1,3.2356]
[1727429585471,0.37595,2659.2,2658.6,3.2078]
[1727429585472,0.37602,2658.7,2658.6,3.2078]
[1727429585781,17.79730331,2659.2,2658.5,3.2078]
[1727429585782,3.88881331,2659.0,2658.5,3.2078]
[1727429585963,4.41769219,2659.1,2658.5,3.2078]
[1727429585964,3.88881331,2659.1,2658.7,0.37601]
[1727429586165,5.63176331,2659.3,2658.8,3.2078]
[1727429586468,3.88881331,2659.3,2658.9,1.3311]
[1727429586665,0.37594,2659.3,2658.9,0.9551]
[1727429586973,3.15443,2659.4,2658.9,0.9551]
[1727429587481,0.37594,2659.3,2658.9,0.9551]
[1727429587978,3.88881331,2659.0,2658.9,0.9551]
[1727429588184,3.88881331,2659.0,2658.9,4.7159]
[1727429589375,3.88881331,2659.0,2658.9,11.0919]
[1727429589580,3.88881331,2659.1,2659.0,0.37598]
[1727429589874,4.90555304,2659.3,2659.1,0.37597]
[1727429589875,3.88881331,2659.3,2659.1,0.37597]
[1727429590080,3.88881331,2659.4,2659.2,4.7312]
[1727429590272,3.88881331,2659.4,2659.2,1.34635]
[1727429590468,8.3065055,2659.5,2659.4,0.37593]
[1727429590780,3.88881331,2659.6,2659.5,0.37591]
[1727429591079,3.88881331,2659.6,2659.5,4.13591]
[1727429591286,3.88881331,2659.6,2659.5,3.76]
[1727429591469,3.88881331,2659.6,2659.5,4.13591]
[1727429591670,3.88881331,2659.6,2659.5,3.76]
[1727429592576,4.41769219,2659.6,2659.4,4.1734]
[1727429592775,3.91180788,2659.5,2659.4,4.1734]
[1727429593177,3.91180788,2659.5,2659.4,7.9334]
[1727429593379,3.91180788,2659.5,2659.4,8.30933]
[1727429593669,3.91180788,2659.6,2659.4,7.9334]
[1727429593872,3.91180788,2659.6,2659.4,4.54932]
[1727429594177,3.91180788,2659.6,2659.5,0.37591]
[1727429594368,3.91180788,2659.7,2659.4,4.54932]
[1727429594974,3.91180788,2659.6,2659.4,4.54932]
[1727429595472,3.91180788,2659.6,2659.4,4.1734]
[1727429596281,0.37588,2659.7,2659.4,4.1734]
[1727429596479,1.30088,2659.8,2659.4,4.54933]
[1727429597078,0.925,2659.8,2659.4,4.1734]
[1727429597576,0.37588,2659.7,2659.4,4.1734]
[1727429597775,1.30088,2659.8,2659.4,4.1734]
[1727429598178,1.30088,2659.8,2659.4,4.54932]
[1727429598377,1.30088,2659.8,2659.4,4.1734]
[1727429598581,1.30088,2659.8,2659.4,4.54932]
[1727429598891,1.30088,2659.8,2659.4,4.1734]
[1727429598892,0.37589,2659.7,2659.4,4.1734]
[1727429599584,1.30088,2659.8,2659.4,4.54933]
[1727429600088,1.30088,2659.8,2659.4,4.54932]
[1727429601573,0.9921,2660.1,2659.7,3.2078]
[1727429601883,3.91180788,2660.2,2660.0,3.2078]
[1727429601884,0.37582,2660.2,2660.0,3.2078]
[1727429602272,0.37583,2660.1,2660.0,3.2078]
[1727429602681,0.37582,2660.2,2660.0,3.2078]
[1727429603379,0.9628,2660.3,2660.0,3.2078]
[1727429603686,0.37582,2660.2,2660.0,3.2078]
[1727429603887,0.37583,2660.1,2660.0,3.2078]
[1727429606174,0.37583,2660.1,2659.7,0.37588]
[1727429606387,0.37583,2660.1,2659.9,3.2078]
[1727429606979,0.37582,2660.2,2659.8,0.37586]
[1727429607381,0.37583,2660.1,2660.0,3.2078]
[1727429607782,3.2078,2660.9,2660.0,12.967]
[1727429607986,1.8594,2661.0,2660.6,0.37575]
[1727429608186,1.8594,2661.0,2660.6,0.9935]
[1727429608495,1.8594,2661.0,2660.7,3.2078]
[1727429608681,1.8594,2661.0,2660.7,4.48783]
[1727429608989,1.8594,2661.0,2660.7,4.1121]
[1727429609690,0.087,2661.7,2660.7,4.1121]
[1727429609884,0.087,2662.0,2661.5,3.2078]
[1727429610182,0.37557,2661.9,2661.5,3.2078]
[1727429611089,3.91180788,2661.8,2661.5,3.2078]
[1727429611284,3.91180788,2661.8,2661.4,3.2078]
[1727429611484,6.14037788,2662.0,2661.4,3.2078]
[1727429612286,2.22857,2662.0,2661.4,3.2078]
[1727429612692,5.76480788,2662.0,2661.4,4.52744]
[1727429612898,1.853,2662.0,2661.4,3.2078]
[1727429613096,0.37557,2661.9,2661.4,3.2078]
[1727429613389,0.37558,2661.9,2661.4,3.2078]
[1727429615093,1.853,2662.0,2661.4,3.2078]
[1727429615492,2.22856,2662.0,2661.4,3.2078]
[1727429616401,1.853,2662.0,2661.4,3.2078]
[1727429616593,2.22857,2662.0,2661.5,0.0278]
[1727429618289,0.93876,2662.5,2661.5,0.0278]
[1727429618290,0.087,2662.6,2661.8,3.2078]
[1727429618490,1.37254,2662.2,2661.8,3.2078]
[1727429618701,0.997,2662.2,2661.8,3.2078]
[1727429619099,0.997,2662.2,2661.5,0.0278]
[1727429619100,0.37561,2661.6,2661.5,0.0278]
[1727429619596,4.13321,2661.6,2661.5,0.0278]
[1727429619786,3.7576,2661.6,2661.5,0.0278]
[1727429619989,1.0187,2661.9,2661.5,0.0278]
[1727429620187,0.37561,2661.6,2661.5,0.0278]
[1727429620598,4.13321,2661.6,2661.5,0.0278]
[1727429621092,0.3756,2661.7,2661.5,0.0278]
[1727429621290,0.996,2661.6,2661.5,0.0278]
[1727429621490,1.37161,2661.6,2661.5,0.0278]
[1727429621806,0.996,2661.6,2661.5,0.0278]
[1727429621991,5.12921,2661.6,2661.5,0.0278]
[1727429623299,11.12921,2661.6,2661.5,0.0278]
[1727429623488,5.12921,2661.6,2661.5,0.0278]
[1727429624412,4.7536,2661.6,2661.5,0.0278]
[1727429624698,0.996,2661.6,2661.5,0.0278]
[1727429624891,5.12921,2661.6,2661.5,0.0278]
[1727429627607,4.7536,2661.6,2661.5,0.0278]
[1727429627807,0.996,2661.6,2661.5,0.0278]
[1727429628504,1.37161,2661.6,2661.5,0.0278]
[1727429628704,5.12921,2661.6,2661.5,0.0278]
[1727429628901,5.12921,2661.6,2661.2,3.2078]
[1727429629201,0.996,2661.6,2661.2,3.2078]
[1727429629604,0.9481,2661.8,2661.2,3.2078]
[1727429629795,1.0187,2661.9,2661.5,3.2078]
[1727429630297,3.2078,2662.0,2661.5,3.58343]
[1727429630495,3.2078,2662.0,2661.6,2.35181]
[1727429630690,3.2078,2662.0,2661.7,0.3756]
[1727429631099,3.2078,2662.0,2661.6,2.35181]
[1727429631401,3.2078,2662.0,2661.6,1.9762]
[1727429632805,3.2078,2662.0,2661.6,2.35181]
[1727429632998,3.2078,2662.0,2661.6,1.9762]
[1727429634600,0.929,2662.1,2661.6,5.184]
[1727429634802,0.37556,2662.0,2661.6,5.184]
[1727429635107,0.929,2662.1,2661.6,5.184]
[1727429635403,0.929,2662.1,2661.6,3.2078]
[1727429635608,0.3756,2661.7,2661.6,3.2078]
[1727429635795,0.3756,2661.7,2661.2,3.2078]
[1727429636003,0.37559,2661.8,2661.2,3.2078]
[1727429636308,0.9923,2661.7,2661.2,3.58346]
[1727429636699,0.9923,2661.7,2661.2,3.2078]
[1727429637409,0.9923,2661.7,2661.2,3.58347]
[1727429637601,1.3679,2661.7,2661.2,3.2078]
[1727429638210,0.09508467,2661.5,2661.2,3.2078]
[1727429638511,0.09508467,2661.5,2661.2,3.58346]
[1727429639411,0.09508467,2661.4,2661.2,3.2078]
[1727429640311,0.09508467,2661.3,2661.2,3.2078]
[1727429640707,0.09508467,2661.3,2661.2,6.9654]
[1727429643700,0.09508467,2661.3,2661.2,7.34107]
[1727429647905,0.09508467,2661.3,2661.2,7.36887]
[1727429651309,0.09508467,2661.3,2661.2,13.36887]
[1727429651510,0.09508467,2661.3,2661.2,14.32407]
[1727429653110,0.09508467,2661.3,2661.2,13.36887]
[1727429653409,0.09508467,2661.3,2661.2,3.2356]
[1727429655409,4.00689255,2661.3,2661.2,3.2356]
[1727429655610,8.14015255,2661.3,2661.2,3.2356]
[1727429655813,4.22834467,2661.3,2661.2,0.0278]
[1727429658110,4.98748585,2661.3,2661.2,0.0278]
[1727429658616,0.09508467,2661.3,2661.2,0.0278]
[1727429659411,4.49803531,2661.3,2661.2,0.0278]
[1727429660012,4.49803531,2661.3,2661.2,3.2078]
[1727429661311,4.87369531,2661.3,2661.2,3.2078]
[1727429661511,0.47074467,2661.3,2661.2,3.2078]
[1727429661717,0.09508467,2661.3,2661.2,3.2078]
[1727429662218,4.49780557,2661.3,2661.2,3.2078]
[1727429662624,4.49783528,2661.3,2661.2,3.2078]
[1727429663517,0.47074467,2661.3,2661.2,3.2078]
[1727429664022,4.22834467,2661.3,2661.2,3.2078]
[1727429664325,0.37567,2661.2,2660.9,3.2078]
[1727429665424,0.09508467,2661.1,2660.9,3.2078]
[1727429666329,0.09508467,2661.1,2660.9,3.58351]
[1727429666509,0.37566,2661.3,2660.9,3.58351]
[1727429666510,0.09508467,2661.0,2660.9,3.58351]
[1727429667422,0.09508467,2661.0,2660.9,3.2078]
[1727429668825,0.09508467,2661.0,2660.9,7.34191]
[1727429669615,0.09508467,2661.0,2660.9,13.34191]
[1727429674425,1.9895,2661.7,2660.9,12.9662]
[1727429674634,0.994,2661.7,2661.4,3.2078]
[1727429674823,0.9377,2662.0,2661.5,1.17496571]
[1727429675025,0.9377,2662.0,2661.9,0.37557]
[1727429675320,1.0261,2662.1,2661.9,0.37557]
[1727429675521,1.0261,2662.1,2661.9,4.13237]
[1727429675727,1.0261,2662.1,2661.9,0.37557]
[1727429677021,1.0261,2662.1,2661.8,3.2078]
[1727429677222,0.9957,2662.3,2661.9,3.7568]
[1727429677529,0.9957,2662.3,2661.5,3.07633571]
[1727429677530,0.9957,2662.3,2662.2,0.37553]
[1727429678330,0.9546,2662.6,2662.2,0.37552]
[1727429678528,3.91348278,2662.3,2662.2,0.37552]
[1727429679128,3.91348278,2662.4,2662.3,0.37552]
[1727429679329,3.91348278,2662.4,2662.1,4.1672]
[1727429679633,3.91348278,2662.4,2662.2,0.37552]
[1727429679839,3.91348278,2662.4,2662.1,4.54274]
[1727429680035,3.91348278,2662.5,2662.1,4.54274]
[1727429680333,6.70313061,2662.6,2662.2,0.37552]
[1727429680334,3.91348278,2662.4,2662.2,0.37552]
[1727429680833,3.91348278,2662.4,2662.1,4.54274]
[1727429681336,3.91348278,2662.5,2662.1,4.54274]
[1727429681834,3.91348278,2662.4,2662.1,4.54274]
[1727429682334,6.70313061,2662.6,2662.1,4.54274]
[1727429682335,3.91348278,2662.5,2662.1,4.54274]
[1727429682931,3.91348278,2662.5,2662.4,3.2078]
[1727429683132,5.83838278,2662.6,2662.4,3.5833]
[1727429683328,5.83838278,2662.6,2662.5,0.37549]
[1727429683532,5.26784118,2662.9,2662.6,0.37547]
[1727429683533,3.91348278,2662.8,2662.6,0.37547]
[1727429683837,6.92768278,2663.0,2662.7,3.58326]
[1727429684335,3.0142,2663.0,2662.7,3.58325]
[1727429684530,3.38963,2663.0,2662.7,3.2078]
[1727429684734,3.38963,2663.0,2662.7,3.58326]
[1727429684735,3.0142,2663.0,2662.7,3.58326]
[1727429685035,3.0142,2663.0,2662.7,3.2078]
[1727429685232,3.38962,2663.0,2662.7,3.58325]
[1727429685626,3.0142,2663.0,2662.7,3.58325]
[1727429685826,3.38962,2663.0,2662.7,3.2078]
[1727429686532,0.37544,2662.9,2662.7,3.2078]
[1727429688444,0.37545,2662.8,2662.7,3.2078]
[1727429688630,3.0142,2663.0,2662.6,3.2078]
[1727429688835,0.37544,2662.9,2662.6,3.2078]
[1727429689443,0.37544,2662.9,2662.5,3.58328]
[1727429689646,0.37545,2662.8,2662.5,3.2078]
[1727429689838,0.37544,2662.9,2662.5,3.58329]
[1727429690446,0.37545,2662.8,2662.5,3.58329]
[1727429690641,0.37544,2662.9,2662.5,3.58329]
[1727429691141,3.38963,2663.0,2662.6,0.37547]
[1727429691333,0.37543,2662.9,2662.5,3.58328]
[1727429692541,0.37543,2662.9,2662.6,0.37547]
[1727429692746,0.37543,2662.9,2662.5,3.58328]
[1727429693440,3.38962,2663.0,2662.6,0.37547]
[1727429694537,3.38962,2663.0,2662.6,3.58327]
[1727429694740,3.38962,2663.0,2662.6,0.37547]
[1727429695139,3.38962,2663.0,2662.6,3.58327]
[1727429695645,0.37544,2662.9,2662.6,3.2078]
[1727429696348,0.37545,2662.8,2662.6,3.2078]
[1727429696654,0.37545,2662.8,2662.4,0.37549]
[1727429696946,3.0142,2663.0,2662.5,3.58328]
[1727429696947,0.37544,2662.9,2662.5,3.58328]
[1727429697633,0.37544,2662.9,2662.5,0.37548]
[1727429697841,0.37544,2662.9,2662.6,3.2078]
[1727429698149,0.37544,2662.9,2662.6,3.58327]
[1727429698447,0.37544,2662.9,2662.6,3.2078]
[1727429698848,0.37544,2662.9,2662.5,3.2078]
[1727429699047,0.37544,2662.9,2662.6,3.2078]
[1727429699247,3.38963,2663.0,2662.6,0.37547]
[1727429699550,3.0142,2663.0,2662.5,3.2078]
[1727429700057,3.0142,2663.0,2662.8,0.37544]
[1727429700237,3.0142,2663.0,2662.9,0.37543]
[1727429700949,3.0142,2663.0,2662.5,3.2078]
[1727429701153,3.0142,2663.0,2662.7,0.37545]
[1727429701453,3.0142,2663.0,2662.8,0.37544]
[1727429701642,3.0142,2663.0,2662.7,0.37545]
[1727429701842,3.0142,2663.0,2662.7,0.37546]
[1727429702046,3.38963,2663.0,2662.6,0.37547]
[1727429702544,3.0142,2663.0,2662.7,0.37546]
[1727429702738,3.0142,2663.0,2662.8,0.37543]
[1727429703148,3.0142,2663.0,2662.8,3.58323]
[1727429703347,2.0193,2663.0,2662.8,3.58323]
[1727429704556,2.0193,2663.0,2662.8,3.2078]
[1727429704940,2.0193,2663.0,2662.8,3.58325]
[1727429705950,0.9787,2663.3,2662.8,3.2078]
[1727429706150,3.32518,2663.3,2662.9,0.9507]
[1727429706652,3.32518,2663.3,2662.9,1.32613]
[1727429707451,0.37539,2663.2,2662.9,0.9507]
[1727429707647,0.37539,2663.2,2662.2,3.2078]
[1727429707648,0.37546,2662.8,2662.2,3.2078]
[1727429707952,0.93848,2663.2,2662.2,4.1585]
[1727429707953,1.9711,2662.7,2662.2,4.1585]
[1727429708356,0.3755,2662.4,2662.2,4.1585]
[1727429708559,0.37549,2662.5,2662.2,4.1585]
[1727429708755,0.3755,2662.4,2662.2,4.1585]
[1727429708955,0.37554,2662.2,2661.9,3.2078]
[1727429709252,0.37554,2662.2,2661.7,1.9654]
[1727429709253,1.0272,2662.1,2661.6,6.46514457]
[1727429709456,0.37559,2661.8,2661.6,3.2078]
[1727429709754,0.9871,2662.0,2661.6,3.2078]
[1727429710458,0.3756,2661.7,2661.6,3.2078]
[1727429711355,0.9871,2662.0,2661.6,3.2078]
[1727429711549,0.37558,2661.9,2661.6,3.2078]
[1727429713454,0.37559,2661.8,2661.6,3.2078]
[1727429714554,0.37556,2662.0,2661.6,3.2078]
[1727429715968,0.37558,2661.9,2661.6,3.2078]
[1727429716370,0.37559,2661.8,2661.6,3.2078]
[1727429716565,0.3756,2661.7,2661.6,3.2078]
[1727429719362,0.37559,2661.8,2661.6,3.2078]
[1727429719564,3.2078,2662.0,2661.6,3.2078]
[1727429719565,0.3756,2661.7,2661.6,3.2078]
[1727429720860,0.37559,2661.8,2661.6,3.2078]
[1727429722059,0.3756,2661.7,2661.6,3.2078]
[1727429722462,0.37559,2661.9,2661.6,3.2078]
[1727429722651,3.2078,2662.0,2661.6,3.2078]
[1727429723157,0.3756,2661.8,2661.6,3.2078]
[1727429725360,3.2078,2662.0,2661.6,3.2078]
[1727429725560,3.2078,2662.3,2661.7,0.9706]
[1727429725758,0.37553,2662.2,2661.9,3.2078]
[1727429725959,4.1748,2662.3,2662.0,0.37556]
[1727429726161,3.2078,2662.3,2662.0,0.37556]
[1727429726664,3.2078,2662.3,2661.9,3.58337]
[1727429726665,3.58333,2662.3,2661.9,3.58337]
[1727429727063,0.967,2662.2,2661.9,3.58337]
[1727429727367,1.34253,2662.2,2661.9,3.58337]
[1727429727568,1.34253,2662.2,2661.9,3.2078]
[1727429727764,1.34254,2662.2,2661.9,3.2078]
[1727429728067,0.37556,2662.0,2661.9,3.2078]
[1727429728361,0.37559,2661.8,2661.4,0.37564]
[1727429728565,0.3756,2661.7,2661.3,3.58345]
[1727429728765,1.4028,2661.7,2661.3,3.58345]
[1727429728963,1.4028,2661.7,2661.4,0.37564]
[1727429729668,1.4028,2661.7,2661.3,3.2078]
[1727429729669,1.0272,2661.7,2661.3,3.2078]
[1727429729873,1.34152,2661.6,2661.3,3.2078]
[1727429730058,0.9659,2661.6,2661.4,0.37564]
[1727429730458,0.9659,2661.6,2661.3,3.2078]
[1727429730459,0.9659,2661.6,2661.3,3.58345]
[1727429731474,0.9659,2661.6,2661.3,3.2078]
[1727429731666,1.34152,2661.6,2661.3,3.2078]
[1727429731871,0.37563,2661.5,2661.3,3.2078]
[1727429732068,0.9659,2661.6,2661.3,3.2078]
[1727429732462,1.34152,2661.6,2661.3,3.2078]
[1727429732670,0.37563,2661.5,2661.3,3.2078]
[1727429732963,0.9659,2661.6,2661.3,3.2078]
[1727429732964,0.37564,2661.4,2661.3,3.2078]
[1727429733672,0.37564,2661.4,2661.0,3.26619]
[1727429733673,0.37564,2661.4,2661.0,6.47399]
[1727429733874,0.37564,2661.5,2661.0,6.47399]
[1727429734372,0.37565,2661.4,2661.0,6.0983]
[1727429734570,0.37565,2661.4,2661.0,6.474]
[1727429734769,1.9149,2661.6,2661.0,6.0983]
[1727429734966,1.9149,2661.6,2661.0,3.2078]
[1727429734967,0.93908,2661.5,2661.0,3.2078]
[1727429735167,3.2078,2661.4,2661.0,3.2078]
[1727429735368,0.37569,2661.1,2661.0,3.2078]
[1727429735772,0.37573,2660.8,2660.7,3.2078]